bitfinex/quotes_ETHUSD_20220309
["timestamp","ask_amount","ask_price","bid_price","bid_amount"]
[1646829422805,0.01259876,2753.3,2753.2,0.03726312]
[1646829423004,4.69259876,2753.3,2753.2,0.03726312]
[1646829423201,1.49259876,2753.3,2753.2,0.03726312]
[1646829423599,2.44859021,2753.3,2753.2,0.03726312]
[1646829424000,2.43599145,2753.3,2753.2,0.03726312]
[1646829424203,1.48,2753.3,2753.2,0.03726312]
[1646829425105,1.48,2753.3,2752.9,6.78918878]
[1646829425106,6.0,2753.1,2752.9,0.04374688]
[1646829425303,10.8538381,2753.0,2752.8,0.009384]
[1646829425501,7.3538381,2753.0,2752.8,0.009384]
[1646829425699,7.3538381,2753.0,2752.9,0.04035806]
[1646829425700,11.8538381,2753.0,2752.9,0.04035806]
[1646829425902,11.8538381,2753.0,2752.8,8.4e-05]
[1646829425903,6.0,2752.9,2752.8,8.4e-05]
[1646829426150,6.0,2752.9,2752.6,5.589e-05]
[1646829426151,6.0,2752.8,2752.6,5.589e-05]
[1646829426352,6.0,2752.8,2751.7,0.1]
[1646829426353,9.5,2752.7,2751.7,0.1]
[1646829426551,10.9986,2752.7,2752.3,0.037536]
[1646829426751,10.9986,2752.7,2752.3,3.6e-05]
[1646829426951,6.0,2752.6,2752.2,0.0471856]
[1646829427149,0.445,2752.5,2752.2,0.0471856]
[1646829427350,10.85413,2752.4,2751.8,0.03729528]
[1646829427552,0.01257374,2752.3,2751.8,9.528e-05]
[1646829427756,0.01257374,2752.3,2752.2,7.436e-05]
[1646829427950,6.0,2752.2,2751.8,0.01279476]
[1646829428154,3.945,2752.1,2751.8,0.01279476]
[1646829428351,0.90289169,2752.0,2751.8,0.01279476]
[1646829428553,0.445,2751.9,2751.8,0.01279476]
[1646829428751,0.445,2751.9,2751.8,9.528e-05]
[1646829430003,0.445,2751.9,2751.7,0.09408307]
[1646829430305,0.9380052,2752.3,2751.7,0.09408307]
[1646829430306,0.029168,2752.3,2751.7,0.09408307]
[1646829430702,5.7271037,2752.8,2751.8,1.11356621]
[1646829430906,0.5,2752.6,2751.8,1.11356621]
[1646829431504,0.5,2752.6,2752.1,0.00327721]
[1646829431906,1.13597402,2752.7,2752.1,0.00327721]
[1646829432106,1.13597402,2752.7,2751.8,0.96684342]
[1646829432707,1.13597402,2752.7,2752.1,0.00421366]
[1646829433207,1.43597402,2752.7,2752.1,0.00421366]
[1646829433645,1.43597402,2752.7,2751.7,0.09631832]
[1646829433848,1.43597402,2752.7,2751.7,0.09408307]
[1646829434052,6.0,2752.5,2751.0,1.81719]
[1646829434254,0.029168,2751.9,2751.1,0.1126258]
[1646829434449,0.445,2751.8,2751.1,0.1126258]
[1646829434850,0.900168,2751.9,2751.1,0.1126258]
[1646829434851,0.029168,2751.9,2751.1,0.1126258]
[1646829435051,7.43275,2752.6,2751.1,0.1126258]
[1646829435052,0.029168,2752.3,2751.1,0.1126258]
[1646829435249,4.0,2752.6,2751.3,3.0]
[1646829435456,0.529168,2752.6,2751.4,0.51187993]
[1646829435650,0.029168,2752.6,2752.2,1.03015873]
[1646829435949,0.029168,2753.1,2752.2,1.03015873]
[1646829436150,10.6462,2753.3,2752.2,4.03015873]
[1646829436151,9.5,2753.3,2752.2,4.03015873]
[1646829436353,0.00312878,2752.6,2752.2,4.03015873]
[1646829436949,0.00312878,2752.6,2752.3,0.51121672]
[1646829437153,0.029168,2753.6,2752.3,0.51121672]
[1646829440112,6.109,2753.9,2753.8,0.33457601]
[1646829440113,1.0,2753.9,2753.8,0.33457601]
[1646829440304,2.7433,2754.6,2753.8,0.33457601]
[1646829440509,2.7433,2754.6,2754.1,0.86579352]
[1646829440510,3.5,2754.6,2754.1,0.86579352]
[1646829440701,0.9194677,2754.8,2754.1,0.86579352]
[1646829440702,0.0115,2754.8,2754.1,0.86579352]
[1646829440902,3.5,2755.0,2754.1,0.86579352]
[1646829441150,0.00312438,2754.3,2754.1,0.86579352]
[1646829441970,1.04736578,2755.1,2754.1,0.86579352]
[1646829442355,0.00312438,2754.3,2754.1,0.86579352]
[1646829443161,1.04736578,2755.1,2754.1,0.86579352]
[1646829443354,0.00093984,2754.3,2754.1,0.86579352]
[1646829444455,0.13819997,2755.5,2754.1,0.86579352]
[1646829444456,3.63819997,2755.5,2754.1,0.86579352]
[1646829444655,0.00312438,2754.3,2754.1,0.86579352]
[1646829444896,0.00312438,2754.3,2754.1,0.91227325]
[1646829445497,3.5,2755.3,2754.1,0.91227325]
[1646829445702,1.15166299,2755.4,2754.6,1.08675452]
[1646829445897,1.8157145,2755.4,2754.6,1.08675452]
[1646829446097,2.7235162,2755.4,2754.6,1.08675452]
[1646829446299,3.6735162,2755.4,2754.6,1.08675452]
[1646829446899,3.6735162,2755.4,2754.1,0.00221992]
[1646829447100,0.00093993,2755.1,2753.9,0.7812344]
[1646829447399,0.00093993,2755.1,2754.0,0.47901448]
[1646829447700,0.90884693,2755.1,2754.1,0.47901448]
[1646829447901,3.5,2755.0,2753.8,0.33457601]
[1646829448102,1.87908648,2755.1,2753.9,0.47964927]
[1646829448103,0.97117948,2755.1,2753.9,0.47964927]
[1646829448304,0.00312438,2754.7,2753.9,0.47964927]
[1646829448947,0.00312438,2754.7,2754.1,1.04973975]
[1646829449152,4.47117948,2755.1,2753.8,0.33457601]
[1646829449153,0.907999,2754.8,2753.8,0.33457601]
[1646829449355,0.00312438,2754.4,2753.9,0.47839553]
[1646829449553,1.816109,2754.8,2753.9,0.47839553]
[1646829449753,0.907999,2754.8,2753.9,0.47839553]
[1646829449955,1.0,2755.1,2753.9,0.47839553]
[1646829449956,0.3,2754.9,2753.9,0.47839553]
[1646829450159,11.08,2754.8,2753.8,0.33679593]
[1646829450356,11.9882336,2754.6,2753.8,0.33457601]
[1646829450556,1.6532336,2754.6,2753.8,0.33457601]
[1646829450754,12.7332336,2754.6,2753.8,0.33457601]
[1646829450960,2.53507181,2754.6,2753.8,0.33457601]
[1646829451156,2.83507181,2754.6,2753.8,0.33457601]
[1646829451358,4.74328181,2754.6,2753.8,0.33457601]
[1646829451558,3.44328181,2754.6,2753.8,0.33457601]
[1646829451759,8.24328181,2754.6,2753.8,0.12480101]
[1646829451959,11.08,2754.5,2753.8,0.12480101]
[1646829452157,11.08,2754.1,2753.8,0.12480101]
[1646829452399,5.3168152,2754.0,2753.8,0.12480101]
[1646829452601,0.92694236,2753.9,2753.8,0.12480101]
[1646829453603,7.6702352,2754.0,2753.8,0.12480101]
[1646829454200,4.1702352,2754.0,2753.8,0.12480101]
[1646829455001,1.18666618,2753.9,2753.8,0.12480101]
[1646829455402,14.58,2753.9,2753.8,1.01e-06]
[1646829455607,15.16457621,2753.9,2753.8,1.01e-06]
[1646829455804,16.16457621,2753.9,2753.8,1.01e-06]
[1646829456668,16.16457621,2753.9,2752.6,0.00394449]
[1646829456866,11.08,2753.5,2752.6,0.00394449]
[1646829457065,11.08,2753.5,2752.6,0.47792744]
[1646829457066,11.98868,2753.3,2752.6,0.47792744]
[1646829457274,11.08,2753.1,2752.6,0.00394449]
[1646829457466,11.525,2753.0,2752.6,0.00394449]
[1646829457669,11.525,2753.0,2752.2,0.4741217]
[1646829457670,0.99044145,2752.7,2752.2,0.4741217]
[1646829457865,0.99044145,2752.7,2752.6,0.00394419]
[1646829457866,1.43544145,2752.7,2752.6,0.00394419]
[1646829458066,0.445,2752.7,2752.6,0.00394419]
[1646829458474,0.445,2752.7,2752.6,0.47806589]
[1646829458668,11.08,2752.8,2752.6,0.47806589]
[1646829458873,11.08,2752.8,2752.0,0.029168]
[1646829458874,12.08,2752.8,2752.0,0.029168]
[1646829459069,13.27277051,2752.8,2752.5,0.00394678]
[1646829459271,12.08,2752.8,2752.5,0.00394678]
[1646829459472,1.0,2752.8,2752.5,0.00394678]
[1646829459902,1.8172723,2753.3,2752.2,1.11904689]
[1646829460201,1.8172723,2753.3,2752.3,0.46312065]
[1646829460202,0.89194897,2753.2,2752.3,0.46312065]
[1646829460401,0.89194897,2753.2,2752.5,0.00394678]
[1646829460604,0.89194897,2753.2,2752.5,0.46706743]
[1646829460605,0.90873,2753.0,2752.5,0.46706743]
[1646829460802,0.90873,2753.0,2752.6,0.46312065]
[1646829461004,0.90873,2753.0,2752.7,0.46312065]
[1646829461203,0.90873,2753.0,2752.1,0.00221992]
[1646829461204,1.8173662,2753.0,2752.1,0.00221992]
[1646829461410,1.8173662,2753.0,2752.6,0.00394675]
[1646829462405,1.8173662,2753.0,2752.5,0.43425274]
[1646829462605,1.8173662,2753.0,2752.6,0.43820109]
[1646829462804,1.8173662,2753.0,2752.6,0.00394835]
[1646829463647,1.8173662,2753.0,2752.4,0.43428055]
[1646829463648,12.8973662,2753.0,2752.4,0.43428055]
[1646829463849,2.8173662,2753.0,2752.6,0.00394835]
[1646829464054,2.8173662,2753.0,2752.6,0.4382289]
[1646829464251,2.8173662,2753.0,2752.7,0.43428055]
[1646829464654,1.0,2753.2,2752.7,0.43428055]
[1646829465056,1.04676067,2753.4,2752.8,0.43428055]
[1646829465057,0.3,2753.3,2752.8,0.43428055]
[1646829465255,1.3,2753.5,2752.9,0.43428055]
[1646829465456,6.1981,2753.8,2753.0,1.34246055]
[1646829465457,2.6981,2753.8,2753.0,1.34246055]
[1646829465655,2.6981,2753.8,2753.4,0.89448317]
[1646829465869,3.0,2754.2,2753.4,0.89448317]
[1646829466062,3.0,2754.2,2753.0,0.90818]
[1646829466063,3.0,2754.2,2753.5,0.43378871]
[1646829466260,3.0,2754.2,2752.9,0.029168]
[1646829466261,11.08,2754.0,2752.9,0.029168]
[1646829466461,11.08,2753.9,2753.0,0.43384907]
[1646829466664,3.8631,2754.1,2753.0,0.43384907]
[1646829466665,11.08,2753.7,2753.0,0.43384907]
[1646829466863,12.08,2753.7,2753.0,0.43384907]
[1646829467063,3.5,2753.6,2753.1,0.43384907]
[1646829467310,1.0,2753.7,2752.6,0.94869163]
[1646829467503,1.0,2753.6,2752.7,0.43405973]
[1646829467702,0.3,2753.8,2752.7,0.43405973]
[1646829467903,1.745,2753.8,2752.7,0.43405973]
[1646829468108,4.4084207,2753.7,2752.7,0.43405973]
[1646829468405,11.08,2753.5,2752.7,0.43405973]
[1646829468611,11.08,2753.5,2752.0,0.66118563]
[1646829468612,0.01227112,2752.8,2752.0,0.66118563]
[1646829468812,0.01227112,2752.8,2751.3,0.08220276]
[1646829468813,0.0127244,2752.2,2751.3,0.08220276]
[1646829469009,0.98675474,2751.8,2751.3,0.08220276]
[1646829469211,11.08,2751.6,2751.3,0.08220276]
[1646829469406,14.58,2751.5,2750.9,0.0239106]
[1646829469806,1.0,2751.5,2750.9,0.0239106]
[1646829470209,0.7923,2751.7,2750.9,0.0239106]
[1646829470410,1.3,2751.8,2750.9,0.0239106]
[1646829470609,1.3,2751.8,2750.9,0.68558939]
[1646829470610,0.3,2751.8,2750.9,0.68558939]
[1646829470808,4.625968,2752.1,2750.9,0.68558939]
[1646829471074,4.625968,2752.1,2751.0,0.66167879]
[1646829471075,1.474168,2752.1,2751.0,0.66167879]
[1646829471279,1.69929472,2752.1,2750.9,0.68558939]
[1646829471480,3.5,2752.0,2750.9,0.68558939]
[1646829471684,0.474168,2752.1,2750.9,0.68558939]
[1646829471884,1.0,2752.0,2751.5,3.0]
[1646829472282,0.474168,2752.1,2751.5,3.0]
[1646829472480,0.474168,2752.1,2750.9,0.0239106]
[1646829472481,0.474168,2752.1,2751.1,0.00220365]
[1646829472680,0.474168,2752.1,2751.1,0.01514493]
[1646829472980,0.474168,2752.1,2751.1,1.15382465]
[1646829473182,0.029168,2752.1,2751.1,1.81550344]
[1646829473380,0.029168,2752.1,2751.5,0.00420275]
[1646829473984,1.8471987,2752.1,2751.5,0.00420275]
[1646829474183,0.90906,2752.0,2751.5,0.00420275]
[1646829474390,0.90906,2752.0,2751.3,0.0061408]
[1646829474585,15.78906,2752.0,2751.3,0.0061408]
[1646829474833,2.65406,2752.0,2751.7,0.00420251]
[1646829475619,2.65406,2752.0,2751.3,0.0061408]
[1646829475620,1.65406,2752.0,2751.3,0.0061408]
[1646829475820,1.65406,2752.0,2751.7,0.00420245]
[1646829475821,0.9090127,2751.8,2751.7,0.00420245]
[1646829476729,0.9090127,2751.8,2751.3,0.0061408]
[1646829477125,0.9090127,2751.8,2751.6,0.00420257]
[1646829477925,0.9090127,2751.8,2751.3,0.0061408]
[1646829478329,0.9090127,2751.8,2751.6,0.00412383]
[1646829478754,16.0732918,2751.7,2751.1,0.02588256]
[1646829478954,11.08,2751.6,2751.1,0.02588256]
[1646829479162,11.08,2751.6,2751.1,0.05176512]
[1646829479163,11.08,2751.2,2751.1,0.05176512]
[1646829479457,11.08,2751.2,2750.9,0.02193864]
[1646829479458,11.08,2751.0,2750.9,0.02193864]
[1646829479651,11.525,2751.0,2750.9,0.02193864]
[1646829479852,12.525,2751.0,2750.9,0.02193864]
[1646829480057,10.92966406,2751.0,2750.9,0.02193864]
[1646829480257,10.92966406,2751.0,2749.6,1.68634001]
[1646829480258,9.48466406,2750.8,2749.6,1.68634001]
[1646829480455,9.48466406,2750.8,2749.6,0.41759096]
[1646829480456,0.01223992,2750.4,2749.6,0.41759096]
[1646829480657,0.01289419,2749.8,2749.6,0.56618624]
[1646829480861,0.445,2749.7,2749.6,0.56618624]
[1646829481057,9.48466406,2749.7,2749.6,0.13133632]
[1646829481257,9.48466406,2749.7,2749.6,0.09467176]
[1646829481455,1.0,2750.3,2749.7,1.8937184]
[1646829481855,2.2931896,2750.6,2749.7,1.8937184]
[1646829482302,11.08,2750.4,2749.7,1.8937184]
[1646829482703,12.08,2750.4,2749.7,1.8937184]
[1646829483203,11.08,2750.1,2749.9,0.00414603]
[1646829483606,14.58,2750.0,2749.9,0.00414603]
[1646829483806,15.58,2750.0,2749.9,0.01582723]
[1646829484005,11.08,2749.8,2749.7,1.97670896]
[1646829484204,13.4349276,2749.8,2749.7,2.00007136]
[1646829485104,11.08,2749.6,2749.4,0.01627241]
[1646829485305,11.08,2749.3,2749.1,0.0489467]
[1646829485506,3.5,2749.2,2749.1,0.0489467]
[1646829485709,0.445,2749.2,2749.1,0.0489467]
[1646829485906,1.0,2749.2,2749.1,0.0489467]
[1646829486353,1.445,2749.6,2749.1,0.0489467]
[1646829486554,0.445,2749.6,2749.1,0.0489467]
[1646829486754,3.5,2749.5,2749.1,0.0489467]
[1646829486954,0.445,2749.6,2749.1,0.0489467]
[1646829486955,2.2650373,2749.4,2749.1,0.0489467]
[1646829487159,0.51291406,2750.3,2749.1,0.0489467]
[1646829487359,2.8978,2750.1,2749.1,0.0489467]
[1646829487554,0.9097452,2749.9,2749.1,0.0489467]
[1646829487757,3.5,2749.8,2749.1,0.0489467]
[1646829487956,2.2940155,2749.7,2749.5,7.086e-05]
[1646829488158,6.0,2749.3,2748.8,0.10547584]
[1646829488457,6.0,2749.3,2748.1,0.00219494]
[1646829488458,6.0,2749.0,2748.1,0.00219494]
[1646829488656,6.0,2749.0,2748.0,0.02131214]
[1646829488658,0.029168,2748.5,2748.0,0.02131214]
[1646829488855,6.0,2748.4,2748.2,2.484e-05]
[1646829489055,8.44122,2748.4,2748.0,0.02131214]
[1646829489253,8.44122,2748.4,2748.2,4.968e-05]
[1646829489254,6.3,2748.3,2748.2,4.968e-05]
[1646829489459,10.245,2748.3,2748.2,4.968e-05]
[1646829489655,10.274168,2748.3,2748.2,4.968e-05]
[1646829489906,10.274168,2748.3,2747.5,0.01130446]
[1646829489907,6.0,2748.0,2747.7,0.03551606]
[1646829490203,0.04128535,2747.8,2747.7,0.03551606]
[1646829490402,0.04128535,2747.8,2747.2,0.05052854]
[1646829490403,1.8687257,2747.7,2747.2,0.05052854]
[1646829490602,1.8687257,2747.7,2746.8,0.0249292]
[1646829490603,0.99337909,2747.0,2746.8,0.0249292]
[1646829490802,1.1281,2747.0,2746.9,0.0320024]
[1646829491007,1.4281,2747.0,2746.9,0.0320024]
[1646829491210,2.78404,2747.0,2746.9,0.0320024]
[1646829491606,3.78404,2747.0,2746.9,0.0320024]
[1646829492008,4.11174,2747.0,2746.9,0.0320024]
[1646829492409,7.61174,2747.0,2746.9,2.4e-06]
[1646829492808,4.11174,2747.0,2746.9,2.4e-06]
[1646829493208,3.78404,2747.0,2746.9,2.4e-06]
[1646829493407,4.08584,2747.0,2746.9,2.4e-06]
[1646829493853,7.58584,2747.0,2746.9,2.4e-06]
[1646829494050,15.16584,2747.0,2746.9,2.4e-06]
[1646829494550,15.16584,2747.0,2746.8,1.289e-05]
[1646829494750,11.08,2746.9,2746.8,1.289e-05]
[1646829494959,15.025,2746.9,2746.6,2.552e-05]
[1646829495152,11.08,2746.7,2746.6,2.552e-05]
[1646829495451,1.35599,2746.7,2746.6,2.552e-05]
[1646829495652,2.35599,2746.7,2746.6,2.552e-05]
[1646829495853,0.945,2746.7,2746.6,2.552e-05]
[1646829496055,0.5,2746.7,2746.6,2.552e-05]
[1646829496458,2.2665281,2747.3,2746.6,2.552e-05]
[1646829496459,2.2956961,2747.3,2746.6,2.552e-05]
[1646829496658,2.2665281,2747.3,2746.6,2.552e-05]
[1646829496858,0.029168,2747.0,2746.6,2.552e-05]
[1646829497060,6.0,2746.9,2746.3,0.07648672]
[1646829497314,7.3,2746.9,2746.3,0.07648672]
[1646829497513,11.08,2746.8,2746.3,0.07648672]
[1646829497710,12.08,2746.8,2746.3,0.07648672]
[1646829498014,12.525,2746.8,2746.3,0.07648672]
[1646829498509,0.13885852,2746.7,2746.3,0.07648672]
[1646829498715,11.38,2746.5,2746.4,8.425e-05]
[1646829498915,12.890268,2746.5,2746.4,8.425e-05]
[1646829499116,14.94008972,2746.5,2746.4,8.425e-05]
[1646829499315,15.85103972,2746.5,2746.4,8.425e-05]
[1646829499514,16.65103972,2746.5,2746.4,8.425e-05]
[1646829499713,16.65103972,2746.5,2746.3,0.07648672]
[1646829499914,11.08,2746.4,2746.3,0.07648672]
[1646829500117,9.92700667,2746.4,2746.3,0.07648672]
[1646829500319,11.06521641,2746.4,2746.3,0.07648672]
[1646829500922,1.58320974,2746.4,2746.3,0.07648672]
[1646829501164,1.945,2746.4,2746.3,0.07648672]
[1646829501366,0.945,2746.4,2746.3,0.07648672]
[1646829501764,0.5,2746.4,2746.3,0.07648672]
[1646829501967,0.5,2746.4,2746.3,1.2517756]
[1646829502163,0.5,2746.4,2746.3,0.07648672]
[1646829502365,11.525,2747.0,2746.3,0.07648672]
[1646829502564,0.5,2746.9,2746.3,0.07648672]
[1646829502767,0.029168,2746.7,2746.3,0.07648672]
[1646829502965,0.029168,2746.7,2746.3,0.0521819]
[1646829503563,0.029168,2746.7,2746.3,0.05636636]
[1646829504166,12.9016724,2746.8,2746.3,0.05636636]
[1646829504363,12.9016724,2746.8,2746.3,0.0521819]
[1646829504565,16.8466724,2746.8,2746.3,0.0521819]
[1646829504810,11.08,2746.6,2746.3,0.05636636]
[1646829505005,11.109168,2746.4,2746.3,0.05636636]
[1646829505308,0.329168,2746.4,2746.3,0.05636636]
[1646829505504,1.329168,2746.4,2746.3,0.05636636]
[1646829505705,1.04867534,2746.8,2746.3,0.0521819]
[1646829505904,0.5,2746.9,2746.3,0.0521819]
[1646829505905,0.945,2746.9,2746.3,0.0521819]
[1646829506107,12.025,2746.9,2746.3,0.0521819]
[1646829506607,0.029168,2746.7,2746.3,0.0521819]
[1646829506807,0.029168,2746.7,2746.3,0.0481766]
[1646829507208,0.029168,2746.7,2746.3,0.05236109]
[1646829507408,11.08,2746.6,2746.3,0.05236109]
[1646829507708,11.109168,2746.4,2746.3,6.109e-05]
[1646829507915,11.554168,2746.4,2746.3,6.109e-05]
[1646829508107,12.854168,2746.4,2746.1,0.06097522]
[1646829508573,12.854168,2746.4,2744.5,3.02473886]
[1646829508574,0.92300474,2745.8,2745.7,0.15066438]
[1646829508755,0.92300474,2745.8,2745.6,0.12442328]
[1646829508756,13.61420474,2745.8,2745.6,0.12442328]
[1646829508956,11.109168,2745.7,2745.6,0.19458936]
[1646829509158,0.474168,2745.7,2745.6,0.19458936]
[1646829509355,0.474168,2745.7,2745.6,0.23608428]
[1646829509557,0.3,2745.8,2745.6,0.23608428]
[1646829509755,0.5,2745.7,2745.6,0.23608428]
[1646829509954,0.5,2745.7,2745.6,0.19458936]
[1646829510157,11.609168,2745.7,2745.6,0.19458936]
[1646829510363,13.126068,2745.7,2745.6,0.19458936]
[1646829510756,14.448728,2745.7,2745.6,0.19458936]
[1646829510959,0.08601064,2745.6,2745.5,0.0547448]
[1646829511163,11.61101064,2745.6,2745.5,0.0547448]
[1646829511363,11.91101064,2745.6,2745.5,0.09680814]
[1646829511563,13.23271064,2745.6,2745.5,0.09680814]
[1646829511763,14.14403064,2745.6,2745.5,0.09680814]
[1646829512903,2.15271064,2745.6,2745.5,0.09680814]
[1646829513109,0.83101064,2745.6,2745.5,0.09680814]
[1646829513308,0.445,2745.6,2745.5,0.09680814]
[1646829513502,0.5,2746.0,2745.5,0.09680814]
[1646829513705,0.029168,2745.6,2745.5,0.09680814]
[1646829514002,0.029168,2745.6,2745.5,0.0547448]
[1646829514407,0.91115,2745.9,2745.5,0.0547448]
[1646829514408,0.029168,2745.9,2745.5,0.0547448]
[1646829514605,0.5,2746.3,2745.5,0.0547448]
[1646829514811,0.5,2746.3,2745.6,0.04149492]
[1646829515008,0.3631,2746.7,2745.6,0.04623972]
[1646829515009,0.029168,2746.1,2745.6,0.04623972]
[1646829515210,0.029168,2745.8,2745.6,0.04623972]
[1646829515613,0.445,2746.5,2745.7,1.10456334]
[1646829515809,0.029168,2746.3,2745.8,0.00418494]
[1646829516257,0.029168,2746.3,2745.8,8.494e-05]
[1646829516464,0.029168,2745.9,2745.7,0.0226712]
[1646829516659,11.525,2745.8,2745.7,0.0226712]
[1646829516858,12.73624,2745.8,2745.7,0.0226712]
[1646829517058,13.73624,2745.8,2745.7,0.0226712]
[1646829518265,12.73624,2745.8,2745.7,0.0226712]
[1646829518461,12.73624,2745.8,2745.4,0.03465578]
[1646829518462,6.0,2745.7,2745.4,0.03465578]
[1646829518762,6.0,2745.7,2745.4,0.01020948]
[1646829518763,0.940408,2745.5,2745.4,0.01020948]
[1646829518962,0.440408,2745.5,2745.4,0.01020948]
[1646829519263,1.0,2745.9,2745.4,0.01020948]
[1646829519264,1.0,2746.1,2745.4,0.01020948]
[1646829519662,0.3,2746.1,2745.4,0.01020948]
[1646829520105,1.491,2746.3,2745.4,0.01020948]
[1646829520304,1.491,2746.3,2745.6,0.00418221]
[1646829520305,0.3,2746.3,2745.6,0.00418221]
[1646829520506,5.80644,2746.7,2745.6,0.00418221]
[1646829520507,3.0,2746.8,2745.6,0.00418221]
[1646829520716,3.5,2746.8,2745.6,0.00418221]
[1646829520923,3.5,2746.8,2745.5,0.3631]
[1646829520924,0.5,2746.8,2745.7,1.82116]
[1646829521118,0.5,2746.8,2745.8,0.36127509]
[1646829521314,0.5,2746.8,2746.7,1.0439977]
[1646829521517,0.45000001,2746.8,2746.7,1.0439977]
[1646829521715,0.13553727,2747.5,2746.7,1.0439977]
[1646829522314,0.4496,2747.1,2746.7,1.0439977]
[1646829523118,0.4496,2747.1,2746.7,1.9543977]
[1646829523761,0.13553727,2747.5,2746.8,5.5]
[1646829523960,3.0,2747.8,2747.3,0.9835207]
[1646829524358,3.0,2747.8,2747.4,0.36127509]
[1646829524559,3.0,2747.8,2747.3,0.9835207]
[1646829524560,3.0,2747.8,2747.3,1.3466207]
[1646829525162,0.00335001,2747.7,2747.3,1.3466207]
[1646829525362,0.00335001,2747.7,2747.3,0.9835207]
[1646829525561,0.00335001,2747.7,2746.9,0.36528735]
[1646829525760,0.00335001,2747.7,2746.9,0.3631]
[1646829525961,11.08,2748.4,2746.9,0.3631]
[1646829526167,0.9102727,2748.1,2747.0,0.00218735]
[1646829526363,0.00335001,2747.4,2746.9,0.3631]
[1646829526562,0.00335001,2747.4,2746.6,1.14043902]
[1646829526764,0.00335001,2747.4,2746.6,1.50353902]
[1646829527164,0.00335001,2747.4,2746.6,0.3631]
[1646829527409,3.5,2747.8,2746.6,0.3631]
[1646829527410,0.91042,2747.6,2746.6,0.3631]
[1646829527610,0.91042,2747.6,2746.5,0.029168]
[1646829527809,0.00335001,2747.1,2746.5,0.029168]
[1646829528211,0.00335001,2747.1,2746.5,0.392268]
[1646829528412,3.5,2747.7,2746.5,0.3631]
[1646829528610,1.0,2747.7,2746.5,0.3631]
[1646829528815,0.00335001,2746.9,2746.5,0.3631]
[1646829529510,0.00335001,2746.9,2746.6,0.43799607]
[1646829529711,1.42721037,2747.7,2747.0,0.91023]
[1646829529915,4.410222,2748.3,2747.0,0.91023]
[1646829530115,1.42753102,2748.2,2747.1,0.3631]
[1646829530311,1.42753102,2748.1,2747.1,0.3631]
[1646829530511,1.42753102,2748.0,2747.2,1.06788428]
[1646829530712,1.42753102,2747.9,2747.2,1.06788428]
[1646829530927,2.01630301,2748.4,2747.2,1.06788428]
[1646829530928,1.42753102,2747.8,2747.2,1.06788428]
[1646829531165,1.43116525,2747.7,2747.2,1.06788428]
[1646829531373,0.00335001,2747.7,2747.2,1.06788428]
[1646829531567,0.00335001,2747.7,2746.7,1.82263735]
[1646829531767,0.00335001,2747.7,2746.7,0.3631]
[1646829532166,2.08109488,2748.1,2746.8,0.07489919]
[1646829532167,0.65320301,2747.8,2746.8,0.07489919]
[1646829532366,13.69646872,2748.1,2746.5,0.029168]
[1646829532367,0.00335001,2747.3,2746.5,0.029168]
[1646829532568,0.00335001,2747.3,2746.5,1.23403538]
[1646829532765,0.00335001,2747.3,2746.6,0.07490406]
[1646829533367,1.42789187,2747.3,2746.5,1.23403538]
[1646829533568,1.56363301,2747.6,2746.5,1.23403538]
[1646829533569,0.00335001,2747.1,2746.5,1.23403538]
[1646829533768,1.43124188,2747.1,2746.6,0.98526548]
[1646829533971,1.42789187,2747.0,2746.6,0.91036]
[1646829534168,0.00335001,2747.1,2746.7,0.07490415]
[1646829534467,1.43338833,2747.5,2746.7,1.89543415]
[1646829534672,0.00335001,2746.9,2746.8,0.07490415]
[1646829535709,0.65320301,2747.7,2746.8,0.07490415]
[1646829535908,0.00335001,2747.0,2746.8,0.07490415]
[1646829536909,0.65320301,2747.7,2746.6,0.91036]
[1646829536910,2.08658193,2747.6,2746.6,0.91036]
[1646829537117,0.00335001,2747.0,2746.4,0.00218735]
[1646829537315,0.9106811,2746.9,2746.1,0.00218735]
[1646829537510,1.43337892,2746.8,2746.1,0.07491374]
[1646829537708,1.43337892,2746.8,2746.2,0.07491374]
[1646829537911,0.44835001,2747.0,2746.3,0.07491374]
[1646829537912,1.43337892,2746.7,2746.3,0.07491374]
[1646829538110,0.445,2747.0,2746.4,0.07491374]
[1646829538311,0.445,2747.0,2745.8,2.86289482]
[1646829538312,0.00335001,2746.6,2746.5,0.07491374]
[1646829538767,0.00335001,2746.6,2745.9,0.00218735]
[1646829538967,0.00335001,2746.6,2745.9,0.07491835]
[1646829539366,1.43378523,2746.8,2745.9,0.07491835]
[1646829539568,0.00334982,2746.5,2745.9,0.07491835]
[1646829539769,0.00334982,2746.5,2746.0,0.07491835]
[1646829539967,0.00334982,2746.5,2746.1,0.07491835]
[1646829540171,0.00334982,2746.5,2746.2,0.02491835]
[1646829540369,0.00334982,2746.5,2745.5,0.00391615]
[1646829540370,0.445,2746.4,2745.5,0.00391615]
[1646829540570,0.445,2746.4,2745.4,0.95015748]
[1646829540771,0.445,2746.4,2745.5,0.00391556]
[1646829541170,0.445,2746.4,2745.7,0.91072]
[1646829541373,0.00334988,2746.5,2746.0,1.13256956]
[1646829541569,0.00334988,2746.5,2745.7,0.91072]
[1646829541774,0.6,2746.7,2745.7,0.91072]
[1646829541971,0.00334958,2746.5,2745.7,0.91072]
[1646829542414,0.00334958,2746.5,2746.0,1.06053213]
[1646829542615,0.00334958,2746.5,2746.0,1.97113213]
[1646829543014,3.945,2747.0,2746.0,1.97113213]
[1646829543214,0.00334982,2746.5,2746.0,1.06053213]
[1646829543614,0.00334982,2746.5,2745.7,1.82125]
[1646829544215,0.91069,2746.8,2745.7,1.82125]
[1646829544421,0.00334964,2746.5,2745.7,4.82125]
[1646829544616,0.00334964,2746.5,2745.7,1.82125]
[1646829544815,0.00334964,2746.5,2746.1,1.11781029]
[1646829545315,0.445,2747.0,2746.1,1.11781029]
[1646829545515,0.00334988,2746.5,2746.1,1.11781029]
[1646829546059,0.00254988,2746.5,2746.1,1.11781029]
[1646829546460,1.82127,2747.3,2746.1,1.11781029]
[1646829546461,5.68437,2747.3,2746.1,1.11781029]
[1646829546663,2.18437,2747.3,2746.1,1.11781029]
[1646829546863,2.18437,2747.3,2746.2,0.91054]
[1646829546864,0.9105749,2747.3,2746.2,0.91054]
[1646829547463,0.9105749,2747.3,2746.1,1.11999764]
[1646829547663,0.9105749,2747.3,2746.1,0.00218735]
[1646829547664,4.7736749,2747.3,2746.1,0.00218735]